fUSD/lending_fUSD_20250812
["ID","MTS","AMOUNT","RATE_DAILY","PERIOD"]
[378792583,1755018642704,-360.03513666,0.000409,120]
[378792584,1755018642713,-360.03513649,0.000409,120]
[378792585,1755018642722,-360.03513649,0.000409,120]
[378792586,1755018642731,-360.03513649,0.000409,120]
[378792587,1755018642740,-360.03513649,0.000409,120]
[378792588,1755018642749,-360.03513649,0.000409,120]
[378792589,1755018642758,-360.03513649,0.000409,120]
[378792590,1755018642768,-360.03513649,0.000409,120]
[378792591,1755018642777,-360.03513649,0.000409,120]
[378792592,1755018642787,-360.03513649,0.000409,120]
[378792593,1755018642796,-360.03513649,0.000409,120]
[378792594,1755018642805,-360.03513649,0.000409,120]
[378792595,1755018642814,-360.03513649,0.000409,120]
[378792596,1755018642823,-360.03513649,0.000409,120]
[378792597,1755018642832,-360.03513649,0.000409,120]
[378792598,1755018642843,-360.03513649,0.000409,120]
[378792599,1755018642852,-360.03513649,0.000409,120]
[378792600,1755018642862,-151.0,0.00040956,30]
[378792601,1755018642871,-151.0,0.00040956,30]
[378792602,1755018642881,-151.313576,0.00040956,30]
[378792603,1755018642891,-47943.3574606,0.00040975,3]
[378792604,1755018642900,-151.23745,0.00040985,30]
[378792605,1755018642909,-88888.0,0.00040985,60]
[378792606,1755018642919,-151.0,0.00040995,30]
[378792608,1755018642928,-151.51792,0.00040995,30]
[378792610,1755018642938,-250.37592355,0.00041,2]
[378792612,1755018642947,-150.0,0.00041062,2]
[378792613,1755018642957,-47943.3574606,0.00041065,3]
[378792614,1755018642966,-500.0,0.00041073,5]
[378792615,1755018642976,-500.0,0.00041073,5]
[378792617,1755018642985,-500.0,0.00041073,5]
[378792618,1755018642997,-500.75904934,0.00041073,5]
[378792619,1755018643007,-500.0,0.00041073,5]
[378792620,1755018643016,-500.0,0.00041073,5]
[378792621,1755018643026,-504.11969256,0.00041073,5]
[378792622,1755018643035,-37899.98578808,0.00041075,3]
[378792623,1755018643075,-1888.0,0.0003942,3]
[378792624,1755018643086,-4318.02092,0.00041075,3]
[378792625,1755018643099,-5731.41317928,0.00041075,3]
[378792626,1755018643110,-317.92,0.00041075,3]
[378792628,1755018645621,-468.07,0.00037996,2]
[378792629,1755018645630,-2668.41166985,0.00041075,3]
[378792630,1755018645677,-870.09429309,0.00041075,3]
[378792631,1755018645693,-5547.37405442,0.00041075,3]
[378792634,1755018646257,-4666.06032113,0.00041075,3]
[378792635,1755018646268,-13404.9,0.00041075,3]
[378792679,1755018903192,400.0,0.0001801,2]
[378792744,1755019301553,205.7,0.00013699,2]
[378792774,1755019508972,49394.3,0.00019,2]
[378792775,1755019509001,50000.0,0.00019,2]
[378792776,1755019509030,50000.0,0.00019,2]
[378792777,1755019509058,50000.0,0.00019,2]
[378792778,1755019509088,49793.55,0.00019,2]
[378792779,1755019509115,50000.0,0.00019,2]
[378792780,1755019509142,37387.32958943,0.00019,2]
[378792805,1755019530264,343.32619317,0.00037423,30]
[378792806,1755019531699,1000.0,0.00037423,30]
[378792807,1755019532256,161.46791883,0.00037423,30]
[378792808,1755019561631,246.55605527,0.00037423,90]
[378792809,1755019563564,2500.0,0.0002739,120]
[378792810,1755019564873,687.22621249,0.00037423,30]
[378792812,1755019576579,732.28965423,0.00037423,120]
[378792813,1755019581135,175.17083164,0.00037423,120]
[378792818,1755019625640,12612.67041057,0.0001799,2]
[378792819,1755019625667,50000.0,0.0001799,2]
[378792820,1755019625691,18034.53918898,0.0001799,2]
[378792849,1755019654768,424.73077999,0.00037423,120]
[378792851,1755019658936,31758.32081102,0.00018,2]
[378792852,1755019658961,50000.0,0.00018,2]
[378792853,1755019658988,6108.39090251,0.00018,2]
[378792854,1755019659011,50000.0,0.00018,2]
[378792855,1755019659036,49753.26,0.00018,2]
[378792856,1755019659062,12586.31959064,0.00018,2]
[378792857,1755019659296,517.00834449,0.00037423,120]
[378792858,1755019667588,209.41773625,0.00037423,120]
[378792859,1755019671617,194.30352736,0.00037423,30]
[378792860,1755019672758,427.26829042,0.00037423,120]
[378792861,1755019681212,301.76295086,0.00037423,30]
[378792862,1755019682595,2500.0,0.000264,120]
[378792865,1755019714167,868.11011234,0.00037423,30]
[378792866,1755019715838,294.97583966,0.00037423,30]
[378792867,1755019717396,370.44213748,0.00037423,120]
[378792869,1755019726661,168.34959418,0.00037423,30]
[378792870,1755019726808,203.27010199,0.00037423,30]
[378792876,1755019728878,3974.81864608,0.00037423,120]
[378792913,1755019831683,-300.07999249,0.00018999,2]
[378792923,1755019831739,-39.44616532,0.00018999,2]
[378792925,1755019831749,-96815.35362137,0.00019,2]
[378792926,1755019831795,-1200.0,0.00019,2]
[378792927,1755019831806,-6011.39807795,0.00019,2]
[378792928,1755019831818,-2248.60000004,0.00019,2]
[378792933,1755019831858,-29911.95999998,0.00019,2]
[378792935,1755019831870,-1067.353977,0.00019,2]
[378792937,1755019831882,-7523.04869115,0.00019,2]
[378792940,1755019831970,-48556.08750959,0.00019,2]
[378792941,1755019831980,-5000.0,0.00024,5]
[378792942,1755019831989,-297.52310819,0.000249,2]
[378792943,1755019831999,-2841.43,0.0002739,2]
[378792944,1755019832008,-399.999999,0.0003,2]
[378792945,1755019832018,-399.999999,0.0003121,2]
[378792946,1755019832027,-517.6076,0.00032423,2]
[378792947,1755019832037,-161.8,0.00033815,2]
[378792948,1755019832046,-200.0,0.00034,30]
[378792949,1755019832055,-2830.1055269,0.00034978,2]
[378792950,1755019832065,-6069.34373475,0.00035,2]
[378792951,1755019832075,-1000.0,0.00037432,5]
[378792952,1755019832087,-1704.03140332,0.00037432,7]
[378792953,1755019832096,-511.46,0.00037432,60]
[378792954,1755019832106,-153.0,0.00038,120]
[378792956,1755019832116,-152.0,0.00038,120]
[378792958,1755019832125,-1071.64305331,0.00038083,2]
[378792960,1755019832135,-168.0,0.00038502,2]
[378792962,1755019832144,-813.0,0.00038562,5]
[378792963,1755019832154,-585.81524795,0.0003886,14]
[378792964,1755019832163,-163.25,0.00038905,120]
[378792965,1755019832172,-23900.0,0.00038937,2]
[378792966,1755019832182,-770.78608366,0.00038991,2]
[378792967,1755019832191,-368.0,0.00039,2]
[378792968,1755019832201,-406.93643929,0.00039,120]
[378792969,1755019832210,-480.74,0.00039003,2]
[378792970,1755019832219,-511.46,0.00039075,60]
[378792971,1755019832229,-280.55,0.00039085,2]
[378792972,1755019832239,-1000.0,0.00039203,2]
[378792973,1755019832248,-170.0,0.0003927,7]
[378792975,1755019832258,-666.0,0.00039311,3]
[378792977,1755019832268,-152.0,0.000394,120]
[378792979,1755019832277,-276.20366448,0.00039569,2]
[378792980,1755019832287,-159.39,0.00039694,2]
[378792981,1755019832296,-159.39,0.00039794,2]
[378792982,1755019832306,-150.0,0.00039847,2]
[378792983,1755019832316,-154.32,0.00039857,120]
[378792984,1755019832325,-168.0,0.00039881,2]
[378792985,1755019832341,-159.39,0.00039893,2]
[378792986,1755019832351,-957.306,0.00039992,56]
[378792987,1755019832360,-159.39,0.00039992,2]
[378792988,1755019832370,-16354.21121122,0.00039997,2]
[378792989,1755019832380,-159.39,0.00040091,2]
[378792990,1755019832390,-150.0,0.00040097,2]
[378792991,1755019832401,-150.0,0.00040101,2]
[378792992,1755019832411,-150.0,0.0004014,2]
[378792993,1755019832421,-150.0,0.00040164,2]
[378792994,1755019832431,-360.0,0.0004017,2]
[378792995,1755019832441,-150.0,0.0004028,2]
[378792996,1755019832451,-150.0,0.0004035,2]
[378792997,1755019832460,-150.0,0.0004038,2]
[378792998,1755019832470,-153.0,0.000404,120]
[378792999,1755019832480,-150.0,0.00040419,2]
[378793000,1755019832489,-150.0,0.00040429,2]
[378793001,1755019832499,-150.0,0.00040457,2]
[378793002,1755019832509,-150.0,0.00040458,2]
[378793003,1755019832518,-150.0,0.00040481,2]
[378793004,1755019832527,-169.33,0.00040504,2]
[378793005,1755019832537,-150.0,0.00040578,2]
[378793006,1755019832548,-150.0,0.0004061,2]
[378793007,1755019832557,-150.0,0.00040679,2]
[378793008,1755019832567,-150.0,0.00040692,2]
[378793009,1755019832576,-511.46,0.00040728,60]
[378793010,1755019832589,-150.0,0.00040736,2]
[378793011,1755019832598,-150.0,0.00040769,2]
[378793012,1755019832608,-150.0,0.0004077,2]
[378793013,1755019832617,-152.0,0.000408,120]
[378793014,1755019832627,-500.0,0.000408,60]
[378793015,1755019832636,-150.0,0.000408,60]
[378793016,1755019832646,-159.86073109,0.000408,7]
[378793017,1755019832654,-150.0,0.000408,60]
[378793018,1755019832664,-150.0,0.000408,60]
[378793019,1755019832673,-150.0,0.000408,2]
[378793020,1755019832682,-500.0,0.000408,60]
[378793021,1755019832691,-500.0,0.000408,60]
[378793022,1755019832701,-150.0,0.00040813,2]
[378793023,1755019832711,-150.0,0.00040819,2]
[378793024,1755019832720,-1000.0,0.00040821,120]
[378793025,1755019832729,-1000.0,0.00040821,120]
[378793026,1755019832739,-1000.0,0.00040821,120]
[378793027,1755019832748,-1000.0,0.00040821,120]
[378793028,1755019832897,-1000.0,0.00040821,120]
[378793029,1755019832907,-1051.13,0.00040821,120]
[378793030,1755019832916,-150.0,0.00040872,2]
[378793031,1755019832925,-5169.16079486,0.00040885,15]
[378793032,1755019832936,-1745.5026,0.00040885,2]
[378793033,1755019832945,-25965.953,0.00040895,2]
[378793034,1755019832955,-2500.0,0.00040895,2]
[378793035,1755019832964,-242.0,0.000409,30]
[378793036,1755019832974,-1241.79751206,0.000409,13]
[378793037,1755019832983,-169.21614406,0.000409,15]
[378793038,1755019832992,-500.0,0.000409,30]
[378793039,1755019833001,-150.0,0.000409,2]
[378793040,1755019833010,-500.0,0.000409,30]
[378793041,1755019833020,-150.0,0.000409,30]
[378793042,1755019833029,-150.0,0.000409,2]
[378793043,1755019833038,-150.0,0.000409,30]
[378793044,1755019833048,-150.0,0.000409,30]
[378793045,1755019833058,-164.04644488,0.000409,30]
[378793046,1755019833067,-150.0,0.00040912,15]
[378793047,1755019833077,-150.0,0.00040912,15]
[378793048,1755019833090,-150.0,0.00040912,15]
[378793049,1755019833100,-150.0,0.00040912,15]
[378793050,1755019833110,-204.1053251,0.00040912,15]
[378793051,1755019833119,-150.0,0.00040912,15]
[378793052,1755019833129,-150.4338477,0.00040912,15]
[378793053,1755019833139,-150.41510926,0.00040912,15]
[378793054,1755019833148,-150.0,0.00040912,15]
[378793055,1755019833158,-150.52291708,0.00040912,15]
[378793056,1755019833167,-150.0,0.00040912,15]
[378793057,1755019833177,-500.0,0.00040912,15]
[378793058,1755019833186,-150.90629701,0.00040912,15]
[378793059,1755019833196,-588.78,0.00040913,2]
[378793060,1755019833205,-150.0,0.00040945,2]
[378793061,1755019833215,-150.0,0.00040952,2]
[378793062,1755019833224,-607.14,0.00040953,2]
[378793063,1755019833233,-595.34,0.00040953,2]
[378793064,1755019833242,-593.34,0.00040953,2]
[378793065,1755019833251,-16214.0028124,0.00040975,3]
[378793066,1755019833261,-16214.0028124,0.0004098,3]
[378793067,1755019833270,-145926.025312,0.00040985,3]
[378793068,1755019833280,-7056.33423265,0.00040985,3]
[378793069,1755019833289,-1000.0,0.00040985,2]
[378793070,1755019833299,-32428.0056249,0.0004099,3]
[378793071,1755019833309,-28225.3369306,0.0004099,3]
[378793072,1755019833319,-653.48135925,0.00040994,120]
[378793073,1755019833329,-179.54691114,0.00040995,2]
[378793074,1755019833342,-159.4303546,0.00040995,15]
[378793075,1755019833352,-190216.9695,0.00040995,2]
[378793076,1755019833361,-88888.0,0.00040995,60]
[378793077,1755019833371,-1000.0,0.00041,120]
[378793078,1755019833381,-13978.01171226,0.00041,5]
[378793079,1755019833394,-388.0,0.00041,5]
[378793080,1755019833406,-45196.22651718,0.00041,5]
[378793081,1755019833416,-150.0,0.00041011,2]
[378793082,1755019833426,-150.0,0.00041024,2]
[378793083,1755019833435,-457.93703655,0.00041037,2]
[378793084,1755019833445,-280.55,0.00041039,2]
[378793085,1755019833454,-16214.0028124,0.00041054,3]
[378793086,1755019833464,-1004.14960173,0.00041062,2]
[378793087,1755019833473,-14112.6684653,0.00041064,3]
[378793088,1755019833483,-32428.0056249,0.00041065,3]
[378793089,1755019833493,-500.0,0.00041073,5]
[378793090,1755019833503,-500.0,0.00041073,2]
[378793091,1755019833513,-500.0,0.00041073,5]
[378793092,1755019833523,-500.0,0.00041073,5]
[378793093,1755019833532,-504.76803019,0.00041073,5]
[378793094,1755019833541,-500.0,0.00041073,5]
[378793095,1755019833550,-500.0,0.00041073,5]
[378793096,1755019833560,-500.0,0.00041074,60]
[378793097,1755019833570,-150.0,0.00041074,60]
[378793098,1755019833579,-150.0,0.00041074,60]
[378793099,1755019833590,-500.0,0.00041074,60]
[378793100,1755019833600,-500.0,0.00041074,60]
[378793101,1755019833610,-5000.0,0.00041074,5]
[378793102,1755019833619,-151.0,0.00041074,3]
[378793103,1755019833628,-200.0,0.00041074,3]
[378793104,1755019833638,-151.0,0.00041074,3]
[378793105,1755019833647,-151.0,0.00041074,3]
[378793106,1755019833656,-600.0,0.00041074,3]
[378793107,1755019833666,-600.0,0.00041074,3]
[378793108,1755019833675,-600.0,0.00041074,3]
[378793109,1755019833685,-250.0,0.00041074,3]
[378793110,1755019833694,-151.0,0.00041074,3]
[378793111,1755019833703,-151.0,0.00041074,3]
[378793112,1755019833713,-600.0,0.00041074,3]
[378793113,1755019833723,-250.0,0.00041074,3]
[378793114,1755019833732,-151.0,0.00041074,3]
[378793115,1755019833742,-151.0,0.00041074,3]
[378793116,1755019833751,-600.0,0.00041074,3]
[378793117,1755019833761,-250.0,0.00041074,3]
[378793118,1755019833770,-151.0,0.00041074,3]
[378793119,1755019833779,-151.0,0.00041074,3]
[378793120,1755019833789,-600.0,0.00041074,3]
[378793121,1755019833799,-151.0,0.00041074,3]
[378793122,1755019833808,-500.0,0.00041074,3]
[378793123,1755019833818,-151.0,0.00041074,3]
[378793124,1755019833828,-500.0,0.00041074,3]
[378793125,1755019833840,-500.0,0.00041074,3]
[378793126,1755019833850,-151.0,0.00041074,3]
[378793127,1755019833859,-500.0,0.00041074,3]
[378793128,1755019833868,-500.0,0.00041074,3]
[378793129,1755019833878,-151.0,0.00041074,3]
[378793130,1755019833887,-500.0,0.00041074,3]
[378793131,1755019833896,-151.0,0.00041074,3]
[378793132,1755019833905,-500.0,0.00041074,3]
[378793133,1755019833915,-151.0,0.00041074,3]
[378793134,1755019833924,-500.0,0.00041074,3]
[378793135,1755019833933,-151.0,0.00041074,3]
[378793136,1755019833942,-500.0,0.00041074,3]
[378793137,1755019833952,-151.0,0.00041074,3]
[378793138,1755019833961,-500.0,0.00041074,3]
[378793139,1755019833970,-151.0,0.00041074,3]
[378793140,1755019833979,-500.0,0.00041074,3]
[378793141,1755019833989,-151.0,0.00041074,3]
[378793142,1755019833998,-500.0,0.00041074,3]
[378793143,1755019834007,-500.0,0.00041074,3]
[378793144,1755019834017,-151.0,0.00041074,3]
[378793145,1755019834026,-500.0,0.00041074,3]
[378793146,1755019834035,-500.0,0.00041074,3]
[378793147,1755019834044,-500.0,0.00041074,3]
[378793148,1755019834054,-500.0,0.00041074,3]
[378793149,1755019834064,-153.0,0.00041075,14]
[378793150,1755019834074,-113498.019687,0.00041075,3]
[378793151,1755019834085,-79371.8564977,0.00041075,3]
[378793156,1755019837537,-1888.0,0.00039002,3]
[378793157,1755019837547,-173.4664,0.0004079,6]
[378793158,1755019837557,-173.4664,0.000409,6]
[378793159,1755019837567,-2109.00964071,0.00040964,2]
[378793160,1755019837578,-685.02973532,0.00040964,2]
[378793161,1755019837596,-829.16356875,0.00040964,2]
[378793162,1755019837651,-297.52310819,0.00040964,2]
[378793163,1755019837663,-1079.27394703,0.00040964,2]
[378793164,1755019837673,-203.61863769,0.00041065,7]
[378793165,1755019837682,-471.41294827,0.00041075,3]
[378793166,1755019837694,-385.23648273,0.00041075,3]
[378793167,1755019837713,-486.2168059,0.00041075,3]
[378793168,1755019837724,-809.06856495,0.00041075,3]
[378793169,1755019837780,-6990.6410281,0.00041075,3]
[378793170,1755019837826,-294.75802627,0.00039502,3]
[378793171,1755019837839,-571.43,0.00039502,3]
[378793172,1755019837850,-549.00896293,0.00039502,3]
[378793176,1755019838029,-472.8030108,0.00039502,3]
[378793177,1755019838040,-1415.1969892,0.00041075,3]
[378793197,1755019842723,-4152.17161703,0.00040995,60]
[378793198,1755019842743,-5400.99738397,0.00040995,60]
[378793199,1755019842833,-79334.830999,0.00040995,60]
[378793200,1755019842851,-151.0,0.00041075,14]
[378793201,1755019842866,-151.0,0.00041075,14]
[378793202,1755019842880,-151.0,0.00041075,14]
[378793203,1755019842894,-151.0,0.00041075,14]
[378793204,1755019842911,-65309.72380115,0.00041075,3]
[378793205,1755019842926,-595.89,0.00041075,2]
[378793206,1755019842940,-591.66,0.00041075,2]
[378793207,1755019842955,-601.73,0.00041075,2]
[378793208,1755019842970,-598.54,0.00041075,2]
[378793209,1755019842985,-1000.0,0.00041084,30]
[378793210,1755019843000,-500.0,0.00041084,120]
[378793211,1755019843015,-500.0,0.00041084,120]
[378793212,1755019843030,-500.0,0.00041084,120]
[378793213,1755019843045,-500.0,0.00041084,120]
[378793214,1755019843059,-500.0,0.00041084,120]
[378793215,1755019843074,-500.0,0.00041084,120]
[378793216,1755019843087,-528.48,0.00041084,120]
[378793217,1755019843104,-435.89842496,0.00041084,10]
[378793218,1755019843121,-653.48135925,0.00041085,120]
[378793219,1755019843136,-246971.698143,0.00041085,3]
[378793220,1755019843151,-196.78883735,0.00041085,30]
[378793221,1755019843166,-999.0,0.00041094,120]
[378793222,1755019843181,-400.0,0.00041095,30]
[378793223,1755019843196,-400.0,0.00041095,30]
[378793224,1755019843211,-400.0,0.00041095,30]
[378793225,1755019843226,-500.0,0.00041095,30]
[378793228,1755019843240,-450.0,0.00041095,30]
[378793230,1755019843254,-400.0,0.00041095,30]
[378793233,1755019843269,-400.0,0.00041095,30]
[378793235,1755019843284,-400.0,0.00041095,30]
[378793238,1755019843299,-400.0,0.00041095,30]
[378793240,1755019843313,-400.0,0.00041095,30]
[378793242,1755019843322,-400.0,0.00041095,30]
[378793244,1755019843332,-400.0,0.00041095,30]
[378793246,1755019843348,-319.14246191,0.00041095,30]
[378793248,1755019843364,-400.0,0.00041095,30]
[378793250,1755019843373,-400.0,0.00041095,30]
[378793252,1755019843384,-400.0,0.00041095,30]
[378793254,1755019843394,-400.0,0.00041095,30]
[378793261,1755019843654,-400.0,0.00041095,30]
[378793262,1755019843683,-400.0,0.00041095,30]
[378793263,1755019843693,-400.0,0.00041095,30]
[378793264,1755019843702,-400.0,0.00041095,30]
[378793265,1755019843711,-400.0,0.00041095,30]
[378793266,1755019843720,-400.0,0.00041095,30]
[378793267,1755019843730,-400.0,0.00041095,30]
[378793268,1755019843739,-400.0,0.00041095,30]
[378793269,1755019843748,-400.0,0.00041095,30]
[378793270,1755019843757,-400.0,0.00041095,30]
[378793271,1755019843766,-400.0,0.00041095,30]
[378793272,1755019843776,-400.0,0.00041095,30]
[378793273,1755019843785,-400.0,0.00041095,30]
[378793274,1755019843794,-400.0,0.00041095,30]
[378793275,1755019843803,-418.66506936,0.00041095,30]
[378793276,1755019843812,-400.0,0.00041095,30]
[378793277,1755019843821,-460.0,0.00041095,30]
[378793278,1755019843830,-400.0,0.00041095,30]
[378793279,1755019843839,-400.0,0.00041095,30]
[378793280,1755019843851,-500.0,0.00041095,30]
[378793281,1755019843860,-400.0,0.00041095,30]
[378793282,1755019843869,-500.0,0.00041095,30]
[378793283,1755019843878,-400.0,0.00041095,30]
[378793284,1755019843887,-400.0,0.00041095,30]
[378793285,1755019843896,-402.81088221,0.00041095,30]
[378793286,1755019843905,-400.0,0.00041095,30]
[378793287,1755019843914,-400.0,0.00041095,30]
[378793288,1755019843923,-400.0,0.00041095,30]
[378793289,1755019843933,-400.0,0.00041095,30]
[378793290,1755019843942,-400.0,0.00041095,30]
[378793291,1755019843951,-400.0,0.00041095,30]
[378793292,1755019843960,-400.0,0.00041095,30]
[378793293,1755019843969,-400.0,0.00041095,30]
[378793294,1755019843978,-400.0,0.00041095,30]
[378793295,1755019843987,-400.0,0.00041095,30]
[378793296,1755019843996,-400.0,0.00041095,30]
[378793297,1755019844005,-460.0,0.00041095,30]
[378793298,1755019844014,-460.0,0.00041095,30]
[378793299,1755019844022,-400.0,0.00041095,30]
[378793300,1755019844031,-400.0,0.00041095,30]
[378793301,1755019844040,-400.0,0.00041095,30]
[378793302,1755019844050,-400.0,0.00041095,30]
[378793303,1755019844059,-400.0,0.00041095,30]
[378793304,1755019844068,-400.0,0.00041095,30]
[378793305,1755019844077,-400.0,0.00041095,30]
[378793306,1755019844086,-400.0,0.00041095,30]
[378793307,1755019844097,-400.0,0.00041095,30]
[378793308,1755019844107,-400.0,0.00041095,30]
[378793309,1755019844115,-400.55259997,0.00041095,30]
[378793310,1755019844125,-400.0,0.00041095,30]
[378793311,1755019844134,-460.0,0.00041095,30]
[378793312,1755019844144,-460.0,0.00041095,30]
[378793313,1755019844153,-400.0,0.00041095,30]
[378793314,1755019844162,-400.0,0.00041095,30]
[378793315,1755019844171,-400.0,0.00041095,30]
[378793316,1755019844180,-412.32800253,0.00041095,30]
[378793317,1755019844189,-400.0,0.00041095,30]
[378793318,1755019844198,-400.0,0.00041095,30]
[378793319,1755019844207,-433.5,0.00041095,30]
[378793320,1755019844216,-400.0,0.00041095,30]
[378793321,1755019844225,-400.0,0.00041095,30]
[378793322,1755019844234,-400.0,0.00041095,30]
[378793323,1755019844243,-400.0,0.00041095,30]
[378793324,1755019844252,-400.0,0.00041095,30]
[378793325,1755019844261,-531.76129886,0.00041095,30]
[378793326,1755019844270,-400.0,0.00041095,30]
[378793327,1755019844280,-402.50549009,0.00041095,30]
[378793328,1755019844289,-400.0,0.00041095,30]
[378793329,1755019844298,-400.0,0.00041095,30]
[378793330,1755019844307,-400.0,0.00041095,30]
[378793331,1755019844316,-400.0,0.00041095,30]
[378793332,1755019844325,-250.91038131,0.00041095,30]
[378793333,1755019844336,-400.0,0.00041095,30]
[378793334,1755019844349,-400.0,0.00041095,30]
[378793335,1755019844358,-400.0,0.00041095,30]
[378793336,1755019844367,-400.0,0.00041095,30]
[378793337,1755019844377,-403.45196274,0.00041095,30]
[378793338,1755019844386,-400.0,0.00041095,30]
[378793339,1755019844396,-400.0,0.00041095,30]
[378793340,1755019844405,-421.71959042,0.00041095,30]
[378793341,1755019844416,-400.0,0.00041095,30]
[378793342,1755019844426,-400.0,0.00041095,30]
[378793343,1755019844435,-400.0,0.00041095,30]
[378793344,1755019844444,-400.0,0.00041095,30]
[378793345,1755019844454,-400.0,0.00041095,30]
[378793346,1755019844463,-400.0,0.00041095,30]
[378793347,1755019844472,-400.0,0.00041095,30]
[378793348,1755019844482,-400.0,0.00041095,30]
[378793349,1755019844491,-400.0,0.00041095,30]
[378793350,1755019844501,-400.0,0.00041095,30]
[378793351,1755019844515,-400.0,0.00041095,30]
[378793352,1755019844524,-460.0,0.00041095,30]
[378793353,1755019844534,-400.0,0.00041095,30]
[378793354,1755019844543,-431.11316477,0.00041095,30]
[378793355,1755019844552,-400.0,0.00041095,30]
[378793356,1755019844561,-400.0,0.00041095,30]
[378793357,1755019844571,-400.0,0.00041095,30]
[378793358,1755019844580,-400.0,0.00041095,30]
[378793359,1755019844590,-400.0,0.00041095,30]
[378793360,1755019844600,-400.0,0.00041095,30]
[378793361,1755019844609,-400.0,0.00041095,30]
[378793362,1755019844619,-400.0,0.00041095,30]
[378793363,1755019844628,-400.0,0.00041095,30]
[378793364,1755019844637,-400.0,0.00041095,30]
[378793365,1755019844647,-400.0,0.00041095,30]
[378793366,1755019844656,-344.912757,0.00041095,30]
[378793367,1755019844666,-400.0,0.00041095,30]
[378793368,1755019844675,-400.0,0.00041095,30]
[378793369,1755019844684,-416.66368185,0.00041095,30]
[378793370,1755019844694,-400.0,0.00041095,30]
[378793371,1755019844703,-400.0,0.00041095,30]
[378793372,1755019844712,-400.0,0.00041095,30]
[378793373,1755019844722,-400.0,0.00041095,30]
[378793374,1755019844731,-400.0,0.00041095,30]
[378793375,1755019844740,-400.0,0.00041095,30]
[378793376,1755019844750,-400.0,0.00041095,30]
[378793377,1755019844759,-500.0,0.00041095,30]
[378793378,1755019844768,-502.24579396,0.00041095,30]
[378793379,1755019844778,-400.82120414,0.00041095,30]
[378793380,1755019844788,-400.0,0.00041095,30]
[378793381,1755019844798,-400.0,0.00041095,30]
[378793382,1755019844807,-400.0,0.00041095,30]
[378793383,1755019844816,-400.0,0.00041095,30]
[378793384,1755019844826,-400.0,0.00041095,30]
[378793385,1755019844835,-400.0,0.00041095,30]
[378793386,1755019844846,-400.0,0.00041095,30]
[378793387,1755019844856,-400.0,0.00041095,30]
[378793388,1755019844865,-400.84340928,0.00041095,30]
[378793389,1755019844876,-400.0,0.00041095,30]
[378793390,1755019844888,-400.0,0.00041095,30]
[378793391,1755019844898,-400.0,0.00041095,30]
[378793392,1755019844907,-400.0,0.00041095,30]
[378793393,1755019844916,-400.0,0.00041095,30]
[378793394,1755019844926,-400.0,0.00041095,30]
[378793395,1755019844935,-400.0,0.00041095,30]
[378793396,1755019844944,-312.12540224,0.00041095,30]
[378793397,1755019844953,-400.0,0.00041095,30]
[378793398,1755019844962,-400.0,0.00041095,30]
[378793399,1755019844971,-400.0,0.00041095,30]
[378793400,1755019844980,-400.0,0.00041095,30]